[Event "British Rapidplay Championship 2023"]
[Site "Mercure Bradford, Bankfield Hotel"]
[Date "2023.04.15"]
[Round "4.14"]
[White "Watson, Phil R"]
[Black "Bak, Andrew"]
[Result "1-0"]
[TimeControl "15 minutes plus 10 seconds per move"]
[WhiteElo "2144"]
[BlackElo "1959"]

1. d4 {[%clk 00:15:18]} {[%emt 00:00:02]} Nf6 {[%clk 00:15:17]} {[%emt
00:00:03]} 2. c4 {[%clk 00:15:26]} {[%emt 00:00:02]} g6 {[%clk 00:15:22]}
{[%emt 00:00:05]} 3. Nc3 {[%clk 00:15:34]} {[%emt 00:00:02]} Bg7 {[%clk
00:15:27]} {[%emt 00:00:04]} 4. e4 {[%clk 00:15:42]} {[%emt 00:00:02]} d6
{[%clk 00:15:36]} {[%emt 00:00:02]} 5. f3 {[%clk 00:15:50]} {[%emt 00:00:02]}
O-O {[%clk 00:15:34]} {[%emt 00:00:10]} 6. Bg5 {[%clk 00:15:58]} {[%emt
00:00:04]} c5 {[%clk 00:15:27]} {[%emt 00:00:18]} 7. d5 {[%clk 00:16:05]}
{[%emt 00:00:02]} Qa5 {[%clk 00:15:19]} {[%emt 00:00:17]} 8. Qd2 {[%clk
00:13:47]} {[%emt 00:02:29]} a6 {[%clk 00:14:56]} {[%emt 00:00:33]} 9. Nge2
{[%clk 00:13:26]} {[%emt 00:00:31]} b5 {[%clk 00:14:52]} {[%emt 00:00:14]} 10.
Nc1 {[%clk 00:13:13]} {[%emt 00:00:24]} b4 {[%clk 00:14:47]} {[%emt 00:00:14]}
11. Nd1 {[%clk 00:13:16]} {[%emt 00:00:07]} Qc7 {[%clk 00:14:28]} {[%emt
00:00:27]} 12. Ne3 {[%clk 00:12:45]} {[%emt 00:00:43]} h6 {[%clk 00:14:14]}
{[%emt 00:00:24]} 13. Bh4 {[%clk 00:12:50]} {[%emt 00:00:06]} Kh7 {[%clk
00:14:06]} {[%emt 00:00:17]} 14. Be2 {[%clk 00:12:45]} {[%emt 00:00:15]} Nbd7
{[%clk 00:10:52]} {[%emt 00:03:24]} 15. Nd3 {[%clk 00:12:42]} {[%emt 00:00:13]}
a5 {[%clk 00:10:03]} {[%emt 00:01:00]} 16. O-O {[%clk 00:12:35]} {[%emt
00:00:17]} a4 {[%clk 00:09:27]} {[%emt 00:00:46]} 17. Rac1 {[%clk 00:10:54]}
{[%emt 00:01:50]} Ne5 {[%clk 00:06:58]} {[%emt 00:02:39]} 18. Nxe5 {[%clk
00:10:15]} {[%emt 00:00:50]} dxe5 {[%clk 00:07:06]} 19. Rfd1 {[%clk 00:10:00]}
{[%emt 00:00:24]} Ne8 {[%clk 00:07:15]} {[%emt 00:00:02]} 20. Bd3 {[%clk
00:05:54]} {[%emt 00:04:16]} Nd6 {[%clk 00:07:21]} {[%emt 00:00:04]} 21. Bg3
{[%clk 00:05:56]} {[%emt 00:00:07]} g5 {[%clk 00:05:57]} {[%emt 00:01:34]} 22.
h4 {[%clk 00:04:30]} {[%emt 00:01:36]} Bf6 {[%clk 00:04:27]} {[%emt 00:01:41]}
23. hxg5 {[%clk 00:04:15]} {[%emt 00:00:25]} hxg5 {[%clk 00:04:35]} 24. Nf5
{[%clk 00:03:50]} {[%emt 00:00:36]} Kg6 {[%clk 00:04:19]} {[%emt 00:00:26]} 25.
Qc2 {[%clk 00:02:40]} {[%emt 00:01:20]} Bd7 {[%clk 00:04:22]} {[%emt 00:00:07]}
26. Kf2 {[%clk 00:02:41]} {[%emt 00:00:09]} Rh8 {[%clk 00:04:30]} {[%emt
00:00:01]} 27. Rh1 {[%emt 00:01:48]} Rag8 {[%clk 00:03:05]} 28. b3 {[%clk
00:01:44]} {[%emt 00:01:06]} a3 {[%clk 00:03:14]} {[%emt 00:00:01]} 29. Qb1
{[%clk 00:01:43]} {[%emt 00:00:10]} Qc8 {[%clk 00:03:20]} {[%emt 00:00:04]} 30.
Bxe5 {[%clk 00:01:37]} {[%emt 00:00:16]} Nxf5 {[%clk 00:02:47]} {[%emt
00:00:43]} 31. exf5+ {[%clk 00:01:39]} {[%emt 00:00:08]} Bxf5 {[%clk 00:02:55]}
{[%emt 00:00:02]} 32. Bxf5+ {[%clk 00:01:40]} {[%emt 00:00:09]} Qxf5 {[%clk
00:03:03]} {[%emt 00:00:02]} 33. Bxf6 {[%clk 00:01:16]} {[%emt 00:00:34]} Qxb1
{[%clk 00:02:42]} {[%emt 00:00:31]} 34. Rxb1 {[%clk 00:01:21]} {[%emt
00:00:05]} Kxf6 {[%clk 00:02:49]} {[%emt 00:00:03]} 35. Rhe1 {[%clk 00:01:18]}
{[%emt 00:00:13]} Rd8 {[%clk 00:02:28]} {[%emt 00:00:31]} 36. Re2 {[%clk
00:01:12]} {[%emt 00:00:17]} e6 {[%clk 00:02:15]} {[%emt 00:00:23]} 37. dxe6
{[%clk 00:01:15]} {[%emt 00:00:06]} fxe6 {[%clk 00:02:23]} {[%emt 00:00:02]} 38.
Rbe1 {[%clk 00:01:24]} {[%emt 00:00:01]} Rhe8 {[%clk 00:02:22]} {[%emt
00:00:12]} 39. Kg3 {[%clk 00:01:30]} {[%emt 00:00:04]} Rd4 {[%clk 00:02:27]}
{[%emt 00:00:04]} 40. Re5 {[%clk 00:01:19]} {[%emt 00:00:21]} Rd2 {[%clk
00:02:15]} {[%emt 00:00:22]} 41. R1e2 {[%clk 00:01:28]} {[%emt 00:00:01]} Rxe2
{[%clk 00:02:14]} {[%emt 00:00:11]} 42. Rxe2 {[%clk 00:01:37]} {[%emt
00:00:02]} Rd8 {[%clk 00:02:22]} {[%emt 00:00:01]} 43. Kf2 {[%clk 00:00:51]}
{[%emt 00:00:56]} e5 {[%clk 00:02:09]} {[%emt 00:00:23]} 44. g4 {[%emt
00:00:31]} Rd3 {[%clk 00:02:17]} 45. Re3 {[%clk 00:00:35]} {[%emt 00:00:07]}
Rd2+ {[%clk 00:02:01]} {[%emt 00:00:27]} 46. Re2 {[%clk 00:00:43]} {[%emt
00:00:01]} Rb2 {[%clk 00:02:10]} 47. Ke3 {[%clk 00:00:47]} {[%emt 00:00:06]}
Ke6 {[%clk 00:01:48]} {[%emt 00:00:32]} 48. Kd3 {[%clk 00:00:51]} {[%emt
00:00:07]} Kf6 {[%clk 00:00:51]} {[%emt 00:01:07]} 49. Rxb2 {[%clk 00:00:48]}
{[%emt 00:00:12]} axb2 {[%clk 00:00:59]} {[%emt 00:00:02]} 50. Kc2 {[%clk
00:00:57]} {[%emt 00:00:01]} e4 {[%clk 00:01:08]} {[%emt 00:00:01]} 51. fxe4
{[%clk 00:01:06]} Ke5 {[%clk 00:01:17]} {[%emt 00:00:01]} 52. Kxb2 {[%clk
00:01:15]} Kf4 {[%clk 00:01:18]} {[%emt 00:00:10]} 53. e5 {[%clk 00:01:09]}
{[%emt 00:00:16]} Kxe5 {[%clk 00:01:23]} {[%emt 00:00:05]} 54. a4 {[%clk
00:01:18]} {[%emt 00:00:01]} bxa3+ {[%clk 00:01:31]} {[%emt 00:00:02]} 55. Kxa3
{[%clk 00:01:27]} {[%emt 00:00:01]} Kf4 {[%clk 00:01:10]} {[%emt 00:00:31]} 56.
b4 {[%clk 00:01:35]} {[%emt 00:00:01]} cxb4+ {[%clk 00:01:19]} {[%emt
00:00:01]} 57. Kxb4 {[%clk 00:01:44]} {[%emt 00:00:01]} Kxg4 {[%clk 00:01:27]}
{[%emt 00:00:02]} 58. c5 {[%clk 00:01:53]} {[%emt 00:00:01]} Kf3 {[%clk
00:01:31]} {[%emt 00:00:06]} 59. c6 {[%clk 00:02:02]} {[%emt 00:00:02]} g4
{[%clk 00:01:40]} {[%emt 00:00:01]} 60. c7 {[%clk 00:02:11]} {[%emt 00:00:01]}
g3 {[%clk 00:01:49]} 61. c8=Q {[%emt 00:00:03]} g2 {[%clk 00:01:57]} 62. Qf5+
{[%clk 00:02:24]} {[%emt 00:00:05]} Ke2 {[%clk 00:02:05]} {[%emt 00:00:02]} 63.
Qg4+ {[%clk 00:02:30]} {[%emt 00:00:04]} Kf1 {[%clk 00:02:13]} {[%emt
00:00:02]} 64. Qf3+ {[%clk 00:02:38]} {[%emt 00:00:02]} Kg1 {[%clk 00:02:22]}
65. Kc3 {[%clk 00:02:47]} {[%emt 00:00:02]} 1-0

[Event "British Rapidplay Championship 2023"]
[Site "Mercure Bradford, Bankfield Hotel"]
[Date "2023.04.15"]
[Round "4.16"]
[White "Smith, Andrew P"]
[Black "Fava, Lorenzo"]
[Result "0-1"]
[TimeControl "15 minutes plus 10 seconds per move"]
[WhiteElo "2125"]
[BlackElo "1728"]

1. e4 {[%clk 00:15:18]} {[%emt 00:00:02]} g6 {[%clk 00:14:04]} {[%emt
00:01:16]} 2. d4 {[%clk 00:14:54]} {[%emt 00:00:34]} Bg7 {[%clk 00:14:13]}
{[%emt 00:00:01]} 3. Nc3 {[%clk 00:14:53]} {[%emt 00:00:10]} d6 {[%clk
00:14:22]} {[%emt 00:00:03]} 4. Be3 {[%clk 00:14:47]} {[%emt 00:00:15]} Nf6
{[%clk 00:14:30]} {[%emt 00:00:03]} 5. Qd2 {[%clk 00:14:37]} {[%emt 00:00:19]}
O-O {[%clk 00:14:37]} {[%emt 00:00:03]} 6. Bh6 {[%clk 00:14:09]} {[%emt
00:00:38]} c5 {[%clk 00:14:44]} {[%emt 00:00:04]} 7. Bxg7 {[%clk 00:13:38]}
{[%emt 00:00:40]} Kxg7 {[%clk 00:14:52]} {[%emt 00:00:02]} 8. d5 {[%clk
00:13:15]} {[%emt 00:00:34]} a6 {[%clk 00:14:20]} {[%emt 00:00:41]} 9. h4
{[%clk 00:10:01]} {[%emt 00:03:23]} h5 {[%clk 00:12:35]} {[%emt 00:01:56]} 10.
Nf3 {[%clk 00:09:36]} {[%emt 00:00:35]} b5 {[%clk 00:11:45]} {[%emt 00:01:01]}
11. Ng5 {[%clk 00:09:36]} {[%emt 00:00:08]} b4 {[%clk 00:10:15]} {[%emt
00:01:40]} 12. Nd1 {[%clk 00:09:24]} {[%emt 00:00:23]} e6 {[%clk 00:10:02]}
{[%emt 00:00:23]} 13. Ne3 {[%clk 00:07:30]} {[%emt 00:02:03]} exd5 {[%clk
00:09:10]} {[%emt 00:01:03]} 14. exd5 {[%clk 00:07:37]} {[%emt 00:00:02]} Ng4
{[%clk 00:07:41]} {[%emt 00:01:40]} 15. Be2 {[%clk 00:06:05]} {[%emt 00:01:41]}
Nxe3 {[%clk 00:05:38]} {[%emt 00:02:13]} 16. Qxe3 {[%clk 00:06:13]} {[%emt
00:00:02]} Re8 {[%clk 00:05:42]} {[%emt 00:00:07]} 17. Qf3 {[%clk 00:05:43]}
{[%emt 00:00:39]} Ra7 {[%clk 00:05:21]} {[%emt 00:00:33]} 18. Ne4 {[%clk
00:00:28]} {[%emt 00:05:24]} Bf5 {[%clk 00:04:05]} {[%emt 00:01:25]} 19. Ng3
{[%clk 00:00:34]} {[%emt 00:00:05]} Bg4 {[%clk 00:04:14]} {[%emt 00:00:01]} 20.
Qd3 {[%clk 00:00:39]} {[%emt 00:00:04]} Bxe2 {[%clk 00:04:01]} {[%emt
00:00:24]} 21. Nxe2 {[%clk 00:00:47]} {[%emt 00:00:02]} Rae7 {[%clk 00:04:04]}
{[%emt 00:00:07]} 22. O-O-O {[%clk 00:00:39]} {[%emt 00:00:17]} Rxe2 {[%clk
00:04:10]} {[%emt 00:00:04]} 23. g4 {[%clk 00:00:46]} {[%emt 00:00:03]} Rxf2
{[%clk 00:03:16]} {[%emt 00:01:05]} 24. gxh5 {[%clk 00:00:54]} {[%emt
00:00:02]} Ree2 {[%clk 00:03:22]} {[%emt 00:00:04]} 25. hxg6 {[%clk 00:00:29]}
{[%emt 00:00:35]} Rxc2+ {[%clk 00:03:30]} {[%emt 00:00:02]} 26. Qxc2 {[%clk
00:00:37]} {[%emt 00:00:02]} Rxc2+ {[%clk 00:03:39]} {[%emt 00:00:01]} 27. Kxc2
{[%clk 00:00:46]} fxg6 {[%clk 00:03:28]} {[%emt 00:00:21]} 28. h5 {[%clk
00:00:54]} {[%emt 00:00:02]} Qg5 {[%clk 00:01:09]} {[%emt 00:02:29]} 29. hxg6
{[%clk 00:00:41]} {[%emt 00:00:22]} Qf5+ {[%clk 00:00:47]} {[%emt 00:00:33]} 30.
Kb3 {[%clk 00:00:49]} {[%emt 00:00:01]} Nd7 {[%clk 00:00:47]} {[%emt 00:00:10]}
31. Rhg1 {[%clk 00:00:37]} {[%emt 00:00:22]} Ne5 {[%clk 00:00:34]} {[%emt
00:00:24]} 32. Rgf1 {[%clk 00:00:22]} {[%emt 00:00:24]} Qe4 {[%clk 00:00:34]}
{[%emt 00:00:10]} 33. Ka4 {[%clk 00:00:12]} {[%emt 00:00:21]} Qc4 {[%clk
00:00:25]} {[%emt 00:00:18]} 34. a3 {[%clk 00:00:11]} {[%emt 00:00:12]} b3+
{[%clk 00:00:33]} {[%emt 00:00:03]} 35. Ka5 {[%clk 00:00:19]} {[%emt 00:00:02]}
Qb5# {[%clk 00:00:42]} 0-1

[Event "British Rapidplay Championship 2023"]
[Site "Mercure Bradford, Bankfield Hotel"]
[Date "2023.04.15"]
[Round "4.18"]
[White "Zhao, George"]
[Black "Ortiz Sanchez, Luis"]
[Result "1-0"]
[TimeControl "15 minutes plus 10 seconds per move"]
[WhiteElo "1675"]
[BlackElo "1888"]

1. d4 {[%clk 00:15:17]} {[%emt 00:00:02]} f5 {[%clk 00:15:18]} {[%emt
00:00:03]} 2. c4 {[%clk 00:15:25]} {[%emt 00:00:02]} Nf6 {[%clk 00:15:26]}
{[%emt 00:00:01]} 3. Nc3 {[%clk 00:15:34]} {[%emt 00:00:01]} g6 {[%clk
00:15:34]} {[%emt 00:00:02]} 4. g3 {[%clk 00:15:43]} {[%emt 00:00:01]} Bg7
{[%clk 00:15:42]} {[%emt 00:00:02]} 5. Bg2 {[%clk 00:15:52]} {[%emt 00:00:01]}
d6 {[%clk 00:15:38]} {[%emt 00:00:15]} 6. Nh3 {[%clk 00:15:55]} {[%emt
00:00:06]} O-O {[%clk 00:15:25]} {[%emt 00:00:23]} 7. Nf4 {[%clk 00:15:58]}
{[%emt 00:00:06]} c6 {[%clk 00:14:36]} {[%emt 00:00:59]} 8. d5 {[%clk
00:15:27]} {[%emt 00:00:41]} e5 {[%clk 00:14:18]} {[%emt 00:00:28]} 9. dxe6
{[%clk 00:15:14]} {[%emt 00:00:24]} Qe7 {[%clk 00:14:26]} {[%emt 00:00:01]} 10.
Qb3 {[%clk 00:14:03]} {[%emt 00:01:21]} Na6 {[%clk 00:14:28]} {[%emt 00:00:08]}
11. O-O {[%clk 00:13:55]} {[%emt 00:00:19]} Nc5 {[%clk 00:14:36]} {[%emt
00:00:03]} 12. Qc2 {[%clk 00:14:03]} {[%emt 00:00:01]} Bxe6 {[%clk 00:14:41]}
{[%emt 00:00:04]} 13. b4 {[%clk 00:12:56]} {[%emt 00:01:18]} Ncd7 {[%clk
00:14:29]} {[%emt 00:00:22]} 14. Nxe6 {[%clk 00:12:08]} {[%emt 00:00:58]} Qxe6
{[%clk 00:14:39]} 15. Na4 {[%clk 00:12:07]} {[%emt 00:00:11]} Ne5 {[%clk
00:14:37]} {[%emt 00:00:12]} 16. c5 {[%clk 00:12:09]} {[%emt 00:00:08]} d5
{[%clk 00:14:40]} {[%emt 00:00:07]} 17. Bb2 {[%clk 00:12:07]} {[%emt 00:00:11]}
Nc4 {[%clk 00:14:40]} {[%emt 00:00:10]} 18. Bc3 {[%clk 00:11:59]} {[%emt
00:00:18]} Na3 {[%clk 00:14:17]} {[%emt 00:00:33]} 19. Qd3 {[%clk 00:11:37]}
{[%emt 00:00:32]} Nc4 {[%clk 00:14:04]} {[%emt 00:00:23]} 20. Nb2 {[%clk
00:11:34]} {[%emt 00:00:13]} Rad8 {[%clk 00:13:40]} {[%emt 00:00:34]} 21. Nxc4
{[%clk 00:11:21]} {[%emt 00:00:23]} dxc4 {[%clk 00:13:47]} {[%emt 00:00:03]} 22.
Qc2 {[%clk 00:11:26]} {[%emt 00:00:04]} Rfe8 {[%clk 00:13:08]} {[%emt
00:00:49]} 23. e3 {[%clk 00:11:02]} {[%emt 00:00:34]} Rd3 {[%clk 00:13:01]}
{[%emt 00:00:17]} 24. Rac1 {[%clk 00:10:50]} {[%emt 00:00:22]} Red8 {[%clk
00:13:09]} {[%emt 00:00:02]} 25. Bd4 {[%clk 00:10:28]} {[%emt 00:00:32]} Ra3
{[%clk 00:11:52]} {[%emt 00:01:27]} 26. Qb2 {[%clk 00:09:13]} {[%emt 00:01:26]}
Ra4 {[%clk 00:11:20]} {[%emt 00:00:41]} 27. Rfe1 {[%clk 00:08:40]} {[%emt
00:00:43]} c3 {[%clk 00:11:25]} {[%emt 00:00:05]} 28. Qxc3 {[%clk 00:08:41]}
{[%emt 00:00:10]} Rxa2 {[%clk 00:11:18]} {[%emt 00:00:17]} 29. Bf1 {[%clk
00:08:34]} {[%emt 00:00:16]} Nd5 {[%clk 00:11:11]} {[%emt 00:00:17]} 30. Bc4
{[%clk 00:08:32]} {[%emt 00:00:12]} Bxd4 {[%clk 00:10:55]} {[%emt 00:00:26]} 31.
exd4 {[%clk 00:08:25]} {[%emt 00:00:16]} Nxc3 {[%clk 00:09:12]} {[%emt
00:01:54]} 32. Bxe6+ {[%clk 00:07:41]} {[%emt 00:00:54]} Kf8 {[%clk 00:09:20]}
{[%emt 00:00:01]} 33. Bxa2 {[%clk 00:07:50]} {[%emt 00:00:02]} Nxa2 {[%clk
00:09:29]} 34. Rc4 {[%clk 00:07:59]} {[%emt 00:00:01]} Re8 {[%clk 00:09:11]}
{[%emt 00:00:28]} 35. Kf1 {[%clk 00:06:51]} {[%emt 00:01:17]} Re7 {[%clk
00:08:43]} {[%emt 00:00:38]} 36. Ra1 {[%clk 00:06:50]} {[%emt 00:00:12]} 1-0

[Event "British Rapidplay Championship 2023"]
[Site "Mercure Bradford, Bankfield Hotel"]
[Date "2023.04.15"]
[Round "4.20"]
[White "Buckley, Colm"]
[Black "Mazek, Marek"]
[Result "0-1"]
[TimeControl "15 minutes plus 10 seconds per move"]
[WhiteElo "1870"]
[BlackElo "2052"]

1. d4 {[%clk 00:15:16]} {[%emt 00:00:04]} Nf6 {[%clk 00:15:18]} {[%emt
00:00:02]} 2. Nf3 {[%clk 00:15:19]} {[%emt 00:00:07]} d5 {[%clk 00:15:27]}
{[%emt 00:00:02]} 3. c4 {[%clk 00:15:27]} {[%emt 00:00:02]} c6 {[%clk
00:15:35]} {[%emt 00:00:01]} 4. e3 {[%clk 00:15:29]} {[%emt 00:00:07]} a6
{[%clk 00:15:39]} {[%emt 00:00:08]} 5. Nc3 {[%clk 00:15:18]} {[%emt 00:00:20]}
e6 {[%clk 00:15:47]} {[%emt 00:00:02]} 6. Bd3 {[%clk 00:14:50]} {[%emt
00:00:38]} dxc4 {[%clk 00:15:54]} {[%emt 00:00:04]} 7. Bxc4 {[%clk 00:14:58]}
{[%emt 00:00:01]} b5 {[%clk 00:16:02]} {[%emt 00:00:02]} 8. Be2 {[%clk
00:14:46]} {[%emt 00:00:22]} Nbd7 {[%clk 00:16:02]} {[%emt 00:00:10]} 9. O-O
{[%clk 00:14:38]} {[%emt 00:00:18]} c5 {[%clk 00:16:11]} {[%emt 00:00:01]} 10.
dxc5 {[%clk 00:14:24]} {[%emt 00:00:23]} Bxc5 {[%clk 00:16:20]} {[%emt
00:00:02]} 11. a3 {[%clk 00:14:28]} {[%emt 00:00:06]} Bb7 {[%clk 00:16:23]}
{[%emt 00:00:06]} 12. b4 {[%clk 00:14:30]} {[%emt 00:00:08]} Be7 {[%clk
00:16:31]} {[%emt 00:00:01]} 13. Bb2 {[%clk 00:14:19]} {[%emt 00:00:22]} O-O
{[%clk 00:16:38]} {[%emt 00:00:02]} 14. Qb3 {[%clk 00:13:58]} {[%emt 00:00:31]}
Qb6 {[%clk 00:16:31]} {[%emt 00:00:17]} 15. Rfd1 {[%clk 00:13:41]} {[%emt
00:00:27]} Rad8 {[%clk 00:16:31]} {[%emt 00:00:10]} 16. Rac1 {[%clk 00:13:21]}
{[%emt 00:00:30]} Qa7 {[%clk 00:15:50]} {[%emt 00:00:51]} 17. a4 {[%clk
00:12:24]} {[%emt 00:01:07]} bxa4 {[%clk 00:15:55]} {[%emt 00:00:05]} 18. Qxa4
{[%clk 00:12:07]} {[%emt 00:00:27]} Qa8 {[%clk 00:15:18]} {[%emt 00:00:47]} 19.
Qa5 {[%clk 00:10:34]} {[%emt 00:01:43]} Qb8 {[%clk 00:13:14]} {[%emt 00:02:14]}
20. Ba3 {[%clk 00:08:28]} {[%emt 00:02:17]} Bd6 {[%clk 00:12:31]} {[%emt
00:00:52]} 21. h3 {[%clk 00:08:05]} {[%emt 00:00:33]} Bc7 {[%clk 00:12:09]}
{[%emt 00:00:32]} 22. Qa4 {[%clk 00:07:49]} {[%emt 00:00:26]} Nb6 {[%clk
00:12:16]} {[%emt 00:00:02]} 23. Qb3 {[%clk 00:07:43]} {[%emt 00:00:16]} Rxd1+
{[%clk 00:12:08]} {[%emt 00:00:19]} 24. Rxd1 {[%clk 00:07:35]} {[%emt
00:00:18]} Rd8 {[%clk 00:11:27]} {[%emt 00:00:51]} 25. Rxd8+ {[%clk 00:07:05]}
{[%emt 00:00:40]} Qxd8 {[%clk 00:11:35]} {[%emt 00:00:01]} 26. Qc2 {[%clk
00:06:03]} {[%emt 00:01:12]} Qd6 {[%clk 00:11:15]} {[%emt 00:00:31]} 27. Qd3
{[%clk 00:04:39]} {[%emt 00:01:34]} Nbd5 {[%clk 00:10:34]} {[%emt 00:00:50]} 28.
Nxd5 {[%clk 00:04:22]} {[%emt 00:00:28]} Qxd5 {[%clk 00:10:29]} {[%emt
00:00:15]} 29. Qxd5 {[%clk 00:04:14]} {[%emt 00:00:18]} Nxd5 {[%clk 00:10:32]}
{[%emt 00:00:06]} 30. Nd4 {[%clk 00:03:40]} {[%emt 00:00:45]} e5 {[%clk
00:09:45]} {[%emt 00:00:57]} 31. Nb3 {[%clk 00:03:00]} {[%emt 00:00:50]} Nc3
{[%clk 00:09:24]} {[%emt 00:00:30]} 32. Bc4 {[%clk 00:02:42]} {[%emt 00:00:28]}
Nb5 {[%clk 00:08:52]} {[%emt 00:00:43]} 33. Bb2 {[%clk 00:01:31]} {[%emt
00:01:21]} Kf8 {[%clk 00:08:50]} {[%emt 00:00:11]} 34. Nc5 {[%clk 00:01:36]}
{[%emt 00:00:05]} Bc8 {[%clk 00:08:59]} {[%emt 00:00:01]} 35. Kf1 {[%clk
00:01:29]} {[%emt 00:00:18]} Ke7 {[%clk 00:09:00]} {[%emt 00:00:09]} 36. Ke2
{[%clk 00:01:20]} {[%emt 00:00:18]} f6 {[%clk 00:08:52]} {[%emt 00:00:19]} 37.
f3 {[%clk 00:01:27]} {[%emt 00:00:03]} Bb6 {[%clk 00:08:37]} {[%emt 00:00:25]}
38. Nd3 {[%clk 00:01:15]} {[%emt 00:00:22]} Nd6 {[%clk 00:08:08]} {[%emt
00:00:39]} 39. Bd5 {[%clk 00:00:59]} {[%emt 00:00:26]} Bd7 {[%clk 00:08:14]}
{[%emt 00:00:04]} 40. h4 {[%clk 00:00:34]} {[%emt 00:00:35]} h5 {[%clk
00:08:20]} {[%emt 00:00:05]} 41. g3 {[%clk 00:00:35]} {[%emt 00:00:08]} Bb5
{[%clk 00:08:28]} {[%emt 00:00:02]} 42. Kd2 {[%clk 00:00:37]} {[%emt 00:00:08]}
Nf5 {[%clk 00:07:51]} {[%emt 00:00:46]} 43. e4 {[%clk 00:00:00]} {[%emt
00:00:38]} Nxg3 {[%clk 00:15:10]} {[%emt 00:00:02]} 0-1

[Event "British Rapidplay Championship 2023"]
[Site "Mercure Bradford, Bankfield Hotel"]
[Date "2023.04.15"]
[Round "4.21"]
[White "Larchikov, Maksym"]
[Black "Gopakumar, Siddharth"]
[Result "1/2-1/2"]
[TimeControl "15 minutes plus 10 seconds per move"]
[WhiteElo "1871"]
[BlackElo "1735"]

1. d4 {[%clk 00:15:17]} {[%emt 00:00:03]} d5 {[%clk 00:15:18]} {[%emt
00:00:02]} 2. Nf3 {[%clk 00:15:24]} {[%emt 00:00:03]} Nf6 {[%clk 00:15:26]}
{[%emt 00:00:02]} 3. c4 {[%clk 00:15:31]} {[%emt 00:00:02]} c6 {[%clk
00:15:33]} {[%emt 00:00:03]} 4. e3 {[%clk 00:15:39]} {[%emt 00:00:02]} g6
{[%clk 00:15:42]} {[%emt 00:00:02]} 5. Nc3 {[%clk 00:15:46]} {[%emt 00:00:03]}
Bg7 {[%clk 00:15:49]} {[%emt 00:00:03]} 6. Bd3 {[%clk 00:15:37]} {[%emt
00:00:19]} O-O {[%clk 00:15:42]} {[%emt 00:00:17]} 7. O-O {[%clk 00:15:43]}
{[%emt 00:00:03]} dxc4 {[%clk 00:15:50]} {[%emt 00:00:03]} 8. Bxc4 {[%clk
00:15:49]} {[%emt 00:00:03]} Bg4 {[%clk 00:15:58]} {[%emt 00:00:02]} 9. h3
{[%clk 00:15:48]} {[%emt 00:00:12]} Bxf3 {[%clk 00:16:04]} {[%emt 00:00:04]} 10.
Qxf3 {[%clk 00:15:55]} {[%emt 00:00:02]} Nbd7 {[%clk 00:16:12]} {[%emt
00:00:02]} 11. Rd1 {[%clk 00:15:22]} {[%emt 00:00:43]} e5 {[%clk 00:16:21]}
{[%emt 00:00:02]} 12. d5 {[%clk 00:13:50]} {[%emt 00:01:42]} e4 {[%clk
00:16:30]} {[%emt 00:00:01]} 13. Nxe4 {[%clk 00:12:32]} {[%emt 00:01:28]} Nxe4
{[%clk 00:16:38]} {[%emt 00:00:02]} 14. Qxe4 {[%clk 00:12:25]} {[%emt
00:00:16]} Nb6 {[%clk 00:16:38]} {[%emt 00:00:11]} 15. Bb3 {[%clk 00:10:58]}
{[%emt 00:01:38]} Re8 {[%clk 00:16:20]} {[%emt 00:00:27]} 16. Qf3 {[%clk
00:11:00]} {[%emt 00:00:07]} cxd5 {[%clk 00:14:40]} {[%emt 00:01:51]} 17. Bxd5
{[%clk 00:11:05]} {[%emt 00:00:05]} Nxd5 {[%clk 00:14:47]} {[%emt 00:00:03]} 18.
Qxd5 {[%clk 00:09:58]} {[%emt 00:01:16]} Qxd5 {[%clk 00:12:05]} {[%emt
00:02:53]} 19. Rxd5 {[%clk 00:10:00]} {[%emt 00:00:08]} Red8 {[%clk 00:12:14]}
{[%emt 00:00:01]} 20. Rxd8+ {[%emt 00:01:54]} Rxd8 {[%clk 00:12:19]} {[%emt
00:00:04]} 21. Kf1 {[%clk 00:07:33]} {[%emt 00:00:54]} Rd1+ {[%clk 00:11:11]}
{[%emt 00:01:18]} 22. Ke2 {[%clk 00:07:40]} {[%emt 00:00:03]} Rg1 {[%clk
00:11:19]} {[%emt 00:00:02]} 23. g3 {[%clk 00:06:22]} {[%emt 00:01:27]} 1/2-1/2